[Event "*** Titled Tuesday Blitz"]
[Site "Chess.com"]
[Date "2020.05.19"]
[Round "4"]
[White "Koalaskakistis"]
[Black "NicoChasin"]
[Result "1-0"]
[WhiteElo "2483"]
[BlackElo "2626"]
[TimeControl "180+1"]
[EndTime "12:39:57 PDT"]
[Termination "Koalaskakistis won by checkmate"]

1. f4 {[%clk 0:03:00.9]} 1... e5 {[%clk 0:02:57.9]} 2. fxe5 {[%clk 0:02:59]}
2... d6 {[%clk 0:02:57.4]} 3. exd6 {[%clk 0:02:57.9]} 3... Bxd6 {[%clk
0:02:58.3]} 4. Nf3 {[%clk 0:02:55.2]} 4... Nf6 {[%clk 0:02:58.5]} 5. g3 {[%clk
0:02:52.7]} 5... O-O {[%clk 0:02:55.8]} 6. Bg2 {[%clk 0:02:50.6]} 6... Nc6
{[%clk 0:02:55.2]} 7. O-O {[%clk 0:02:49.1]} 7... Re8 {[%clk 0:02:52]} 8. Nc3
{[%clk 0:02:47.4]} 8... a6 {[%clk 0:02:50.8]} 9. d4 {[%clk 0:02:37.2]} 9... Bg4
{[%clk 0:02:46.3]} 10. Bg5 {[%clk 0:02:29]} 10... h6 {[%clk 0:02:45.9]} 11. Bxf6
{[%clk 0:02:20.7]} 11... Qxf6 {[%clk 0:02:43.3]} 12. Ne5 {[%clk 0:02:13.7]}
12... Qg5 {[%clk 0:02:40.5]} 13. Nxg4 {[%clk 0:02:09.5]} 13... Qxg4 {[%clk
0:02:40.6]} 14. e4 {[%clk 0:02:08.9]} 14... Qxd1 {[%clk 0:02:40.8]} 15. Raxd1
{[%clk 0:02:05.8]} 15... Rad8 {[%clk 0:02:30.9]} 16. e5 {[%clk 0:02:02.2]} 16...
Bb4 {[%clk 0:02:30.8]} 17. Bxc6 {[%clk 0:01:58.5]} 17... bxc6 {[%clk 0:02:30.1]}
18. Ne4 {[%clk 0:01:50.9]} 18... f5 {[%clk 0:02:24.9]} 19. Nf2 {[%clk
0:01:42.6]} 19... c5 {[%clk 0:02:24.1]} 20. c3 {[%clk 0:01:15.8]} 20... Ba5
{[%clk 0:02:23.5]} 21. dxc5 {[%clk 0:01:14.4]} 21... c6 {[%clk 0:02:18.2]} 22.
Nd3 {[%clk 0:01:09.6]} 22... g6 {[%clk 0:02:15.8]} 23. Nf4 {[%clk 0:00:57.7]}
23... Rxd1 {[%clk 0:02:07.7]} 24. Rxd1 {[%clk 0:00:58.6]} 24... Rxe5 {[%clk
0:02:07.7]} 25. Nxg6 {[%clk 0:00:54.8]} 25... Re2 {[%clk 0:02:06.9]} 26. b4
{[%clk 0:00:49]} 26... Bc7 {[%clk 0:02:06.1]} 27. Nh4 {[%clk 0:00:42.7]} 27...
Be5 {[%clk 0:02:01.7]} 28. Rd3 {[%clk 0:00:34.8]} 28... Rxa2 {[%clk 0:01:59.9]}
29. Nxf5 {[%clk 0:00:34.3]} 29... a5 {[%clk 0:01:59.9]} 30. Ne7+ {[%clk
0:00:33.4]} 30... Kf7 {[%clk 0:01:58.5]} 31. Nxc6 {[%clk 0:00:33.9]} 31... Bf6
{[%clk 0:01:57.1]} 32. Nxa5 {[%clk 0:00:32.2]} 32... Ke6 {[%clk 0:01:57.7]} 33.
Nc6 {[%clk 0:00:29.6]} 33... Rc2 {[%clk 0:01:56.9]} 34. b5 {[%clk 0:00:29.2]}
34... Bxc3 {[%clk 0:01:54.1]} 35. b6 {[%clk 0:00:24]} 35... Be5 {[%clk
0:01:43.6]} 36. Nxe5 {[%clk 0:00:23.8]} 36... Kxe5 {[%clk 0:01:43.3]} 37. b7
{[%clk 0:00:24.1]} 37... Rb2 {[%clk 0:01:41.8]} 38. c6 {[%clk 0:00:24.2]} 38...
Ke4 {[%clk 0:01:42.2]} 39. Rd1 {[%clk 0:00:22.8]} 39... Kf3 {[%clk 0:01:37.3]}
40. c7 {[%clk 0:00:20]} 40... Rxb7 {[%clk 0:01:15.2]} 41. c8=Q {[%clk
0:00:19.3]} 41... Rb2 {[%clk 0:01:15.6]} 42. Qf5+ {[%clk 0:00:17.6]} 42... Ke3
{[%clk 0:01:15.9]} 43. Rd3+ {[%clk 0:00:17.8]} 43... Ke2 {[%clk 0:01:16.2]} 44.
Qf3+ {[%clk 0:00:18.3]} 44... Ke1 {[%clk 0:01:16.7]} 45. Rd1# {[%clk 0:00:18.8]}
1-0

[Event "*** Titled Tuesday Blitz"]
[Site "Chess.com"]
[Date "2020.05.19"]
[Round "4"]
[White "TheCavemanChesss"]
[Black "silverback96"]
[Result "1-0"]
[WhiteElo "2546"]
[BlackElo "2318"]
[TimeControl "180+1"]
[EndTime "12:40:00 PDT"]
[Termination "TheCavemanChesss won by resignation"]

1. e4 {[%clk 0:03:00.9]} 1... e6 {[%clk 0:02:51.5]} 2. d4 {[%clk 0:02:59.3]}
2... d5 {[%clk 0:02:50.6]} 3. Nc3 {[%clk 0:02:58.4]} 3... Nf6 {[%clk 0:02:49.8]}
4. e5 {[%clk 0:02:57.7]} 4... Nfd7 {[%clk 0:02:49.5]} 5. f4 {[%clk 0:02:58.6]}
5... c5 {[%clk 0:02:50]} 6. Nf3 {[%clk 0:02:57.6]} 6... Nc6 {[%clk 0:02:50.6]}
7. Be3 {[%clk 0:02:58.1]} 7... Be7 {[%clk 0:02:51.1]} 8. Qd2 {[%clk 0:02:55.6]}
8... O-O {[%clk 0:02:50.1]} 9. Bd3 {[%clk 0:02:49.7]} 9... a6 {[%clk 0:02:40.4]}
10. a3 {[%clk 0:02:48]} 10... b5 {[%clk 0:02:39.5]} 11. O-O {[%clk 0:02:39.6]}
11... f5 {[%clk 0:02:14.9]} 12. Kh1 {[%clk 0:02:36.3]} 12... Qb6 {[%clk
0:01:56]} 13. Qf2 {[%clk 0:02:27.3]} 13... cxd4 {[%clk 0:01:48]} 14. Nxd4 {[%clk
0:02:25.9]} 14... Bc5 {[%clk 0:01:48.5]} 15. Nxe6 {[%clk 0:01:32.8]} 15... Bxe3
{[%clk 0:01:39.4]} 16. Qg3 {[%clk 0:01:33.1]} 16... Rf7 {[%clk 0:01:25.8]} 17.
Nxd5 {[%clk 0:01:32.8]} 17... Qa5 {[%clk 0:00:33.7]} 18. b4 {[%clk 0:01:19.5]}
18... Qa4 {[%clk 0:00:26.8]} 19. Qxe3 {[%clk 0:01:04]} 19... a5 {[%clk 0:00:22]}
20. Nc3 {[%clk 0:01:00.9]} 20... Ndxe5 {[%clk 0:00:16.7]} 21. fxe5 {[%clk
0:00:56.1]} 21... Bxe6 {[%clk 0:00:15.9]} 22. Nxa4 {[%clk 0:00:55.6]} 22... bxa4
{[%clk 0:00:16.8]} 23. b5 {[%clk 0:00:55.1]} 23... Ne7 {[%clk 0:00:16.2]} 24. c4
{[%clk 0:00:50.5]} 24... Raf8 {[%clk 0:00:13.7]} 25. b6 {[%clk 0:00:49.5]} 25...
f4 {[%clk 0:00:13.5]} 26. Qc5 {[%clk 0:00:49.5]} 26... f3 {[%clk 0:00:10.3]} 27.
Rxf3 {[%clk 0:00:49.2]} 27... Rxf3 {[%clk 0:00:06.1]} 28. gxf3 {[%clk
0:00:48.9]} 28... Ng6 {[%clk 0:00:05.4]} 29. Bxg6 {[%clk 0:00:46.9]} 29... hxg6
{[%clk 0:00:05.1]} 30. Qxf8+ {[%clk 0:00:47.1]} 1-0

[Event "*** Titled Tuesday Blitz"]
[Site "Chess.com"]
[Date "2020.05.19"]
[Round "4"]
[White "katchesskat"]
[Black "Filip_Covic"]
[Result "1-0"]
[WhiteElo "2246"]
[BlackElo "2407"]
[TimeControl "180+1"]
[EndTime "12:40:00 PDT"]
[Termination "katchesskat won on time"]

1. c4 {[%clk 0:03:00.9]} 1... e5 {[%clk 0:02:59.6]} 2. e3 {[%clk 0:03:01.8]}
2... Nf6 {[%clk 0:02:59.5]} 3. a3 {[%clk 0:03:01.8]} 3... c6 {[%clk 0:02:58.5]}
4. Qc2 {[%clk 0:03:01.1]} 4... d5 {[%clk 0:02:56.4]} 5. d3 {[%clk 0:02:59.7]}
5... Be7 {[%clk 0:02:54.2]} 6. b4 {[%clk 0:02:57.9]} 6... O-O {[%clk 0:02:53.6]}
7. Bb2 {[%clk 0:02:49.6]} 7... Nbd7 {[%clk 0:02:33.9]} 8. Nd2 {[%clk 0:02:46]}
8... Re8 {[%clk 0:02:33.2]} 9. Ngf3 {[%clk 0:02:44]} 9... Bf8 {[%clk 0:02:31.5]}
10. Be2 {[%clk 0:02:43.9]} 10... h6 {[%clk 0:02:15.4]} 11. h3 {[%clk 0:02:39.3]}
11... Bd6 {[%clk 0:02:09.1]} 12. c5 {[%clk 0:02:37.7]} 12... Bc7 {[%clk
0:02:08.8]} 13. e4 {[%clk 0:02:38.1]} 13... Nf8 {[%clk 0:02:04.5]} 14. g3 {[%clk
0:02:32.5]} 14... Ng6 {[%clk 0:02:00.7]} 15. h4 {[%clk 0:02:32]} 15... Bg4
{[%clk 0:01:59.8]} 16. Bf1 {[%clk 0:02:27.2]} 16... a5 {[%clk 0:01:50.7]} 17.
Bg2 {[%clk 0:02:24.6]} 17... axb4 {[%clk 0:01:49.7]} 18. axb4 {[%clk 0:02:25.5]}
18... Rxa1+ {[%clk 0:01:50.4]} 19. Bxa1 {[%clk 0:02:26.4]} 19... Qd7 {[%clk
0:01:43.3]} 20. Bb2 {[%clk 0:02:23.8]} 20... Ra8 {[%clk 0:01:42.8]} 21. Qb3
{[%clk 0:02:19.1]} 21... dxe4 {[%clk 0:01:31.6]} 22. dxe4 {[%clk 0:02:18.2]}
22... Be6 {[%clk 0:01:20]} 23. Qc2 {[%clk 0:02:15.7]} 23... Ra2 {[%clk
0:01:13.3]} 24. Qb1 {[%clk 0:02:02.7]} 24... b6 {[%clk 0:00:52.6]} 25. h5 {[%clk
0:02:00.9]} 25... Ne7 {[%clk 0:00:52.5]} 26. O-O {[%clk 0:01:53.5]} 26... bxc5
{[%clk 0:00:42.4]} 27. bxc5 {[%clk 0:01:54.4]} 27... Ba5 {[%clk 0:00:33.1]} 28.
Rd1 {[%clk 0:01:53.2]} 28... Bxd2 {[%clk 0:00:23.1]} 29. Nxd2 {[%clk 0:01:43.7]}
29... Qc7 {[%clk 0:00:09.2]} 30. Nf3 {[%clk 0:01:35.6]} 30... Nd7 {[%clk
0:00:09]} 31. Bc3 {[%clk 0:01:25.3]} 31... Nxc5 {[%clk 0:00:08.2]} 32. Bxe5
{[%clk 0:01:20.3]} 32... Qb7 {[%clk 0:00:08.4]} 33. Rd8+ {[%clk 0:01:05.2]}
33... Kh7 {[%clk 0:00:07.2]} 34. Qc1 {[%clk 0:01:02]} 34... Nd7 {[%clk
0:00:03.2]} 35. Rh8+ {[%clk 0:00:58.5]} 35... Kxh8 {[%clk 0:00:01.7]} 36. Qxh6+
{[%clk 0:00:58.6]} 1-0

[Event "*** Titled Tuesday Blitz"]
[Site "Chess.com"]
[Date "2020.05.19"]
[Round "4"]
[White "pastouche06"]
[Black "SameerMujumdar"]
[Result "0-1"]
[WhiteElo "2405"]
[BlackElo "2263"]
[TimeControl "180+1"]
[EndTime "12:40:01 PDT"]
[Termination "SameerMujumdar won by resignation"]

1. d4 {[%clk 0:03:00.9]} 1... Nf6 {[%clk 0:02:50.1]} 2. c4 {[%clk 0:03:00.8]}
2... g6 {[%clk 0:02:45.5]} 3. f3 {[%clk 0:03:00.2]} 3... Bg7 {[%clk 0:02:44.4]}
4. e4 {[%clk 0:02:59.8]} 4... O-O {[%clk 0:02:45.3]} 5. Nc3 {[%clk 0:03:00.3]}
5... d6 {[%clk 0:02:45]} 6. Be3 {[%clk 0:03:00.2]} 6... c5 {[%clk 0:02:45.5]} 7.
Nge2 {[%clk 0:02:59.3]} 7... cxd4 {[%clk 0:02:44.9]} 8. Nxd4 {[%clk 0:03:00.2]}
8... Nc6 {[%clk 0:02:45.3]} 9. Be2 {[%clk 0:03:00.5]} 9... Nxd4 {[%clk
0:02:44.4]} 10. Bxd4 {[%clk 0:03:01.4]} 10... Be6 {[%clk 0:02:45]} 11. O-O
{[%clk 0:02:59.3]} 11... Qa5 {[%clk 0:02:45.6]} 12. b3 {[%clk 0:02:57.7]} 12...
Rfc8 {[%clk 0:02:41]} 13. Rc1 {[%clk 0:02:53]} 13... a6 {[%clk 0:02:31.8]} 14.
f4 {[%clk 0:02:41.5]} 14... b5 {[%clk 0:02:19.2]} 15. f5 {[%clk 0:02:40.3]}
15... Bd7 {[%clk 0:02:16.6]} 16. Bxf6 {[%clk 0:02:08.7]} 16... Bxf6 {[%clk
0:02:15.9]} 17. Nd5 {[%clk 0:02:08.8]} 17... Bg5 {[%clk 0:02:16.3]} 18. fxg6
{[%clk 0:01:33.7]} 18... hxg6 {[%clk 0:02:12.1]} 19. Rc2 {[%clk 0:01:33.5]}
19... Qd8 {[%clk 0:01:58]} 20. Qd4 {[%clk 0:01:26.2]} 20... Rab8 {[%clk
0:01:49.2]} 21. e5 {[%clk 0:00:56]} 21... Be6 {[%clk 0:01:38.2]} 22. Bf3 {[%clk
0:00:38.4]} 22... bxc4 {[%clk 0:01:30.8]} 23. bxc4 {[%clk 0:00:39.3]} 23... Bxd5
{[%clk 0:00:46.9]} 24. Bxd5 {[%clk 0:00:40.2]} 24... e6 {[%clk 0:00:47]} 25. Bf3
{[%clk 0:00:33.3]} 25... d5 {[%clk 0:00:39.9]} 26. Rd1 {[%clk 0:00:26.5]} 26...
Qc7 {[%clk 0:00:32.7]} 27. c5 {[%clk 0:00:21]} 27... Qc6 {[%clk 0:00:28.7]} 28.
Rdc1 {[%clk 0:00:15]} 28... Bxc1 {[%clk 0:00:26.4]} 0-1

[Event "*** Titled Tuesday Blitz"]
[Site "Chess.com"]
[Date "2020.05.19"]
[Round "4"]
[White "chessplayer9919"]
[Black "chessdjw"]
[Result "0-1"]
[WhiteElo "2493"]
[BlackElo "2706"]
[TimeControl "180+1"]
[EndTime "12:40:06 PDT"]
[Termination "chessdjw won by checkmate"]

1. d4 {[%clk 0:03:00.9]} 1... Nf6 {[%clk 0:02:59.6]} 2. c4 {[%clk 0:03:00.8]}
2... g6 {[%clk 0:02:59.9]} 3. Nc3 {[%clk 0:03:01]} 3... d5 {[%clk 0:02:59]} 4.
cxd5 {[%clk 0:03:00.6]} 4... Nxd5 {[%clk 0:02:59.9]} 5. e4 {[%clk 0:03:01.4]}
5... Nxc3 {[%clk 0:02:59.5]} 6. bxc3 {[%clk 0:03:02.3]} 6... Bg7 {[%clk
0:03:00]} 7. Bc4 {[%clk 0:03:02.2]} 7... c5 {[%clk 0:03:00.6]} 8. Ne2 {[%clk
0:03:02.5]} 8... Nc6 {[%clk 0:03:01.3]} 9. Be3 {[%clk 0:03:02.4]} 9... O-O
{[%clk 0:03:01.8]} 10. O-O {[%clk 0:03:02.4]} 10... b6 {[%clk 0:03:02.3]} 11.
dxc5 {[%clk 0:03:02.3]} 11... Qc7 {[%clk 0:03:02.8]} 12. Nd4 {[%clk 0:03:02.4]}
12... Ne5 {[%clk 0:03:02.7]} 13. Nb5 {[%clk 0:03:03]} 13... Qb8 {[%clk
0:03:02.3]} 14. Be2 {[%clk 0:03:03.5]} 14... a6 {[%clk 0:02:51.4]} 15. Na3
{[%clk 0:03:02.2]} 15... bxc5 {[%clk 0:02:48.1]} 16. Rb1 {[%clk 0:02:58.5]}
16... Qc7 {[%clk 0:02:47.5]} 17. f4 {[%clk 0:02:53.4]} 17... Rd8 {[%clk
0:02:47.4]} 18. Qc2 {[%clk 0:02:48.7]} 18... Ng4 {[%clk 0:02:45.8]} 19. Bxg4
{[%clk 0:02:49.1]} 19... Bxg4 {[%clk 0:02:46.7]} 20. f5 {[%clk 0:02:49.8]} 20...
gxf5 {[%clk 0:02:42.1]} 21. h3 {[%clk 0:02:42.3]} 21... Bh5 {[%clk 0:02:18.2]}
22. exf5 {[%clk 0:02:38.2]} 22... c4 {[%clk 0:01:34.6]} 23. Bb6 {[%clk
0:02:20.2]} 23... Qg3 {[%clk 0:01:26.8]} 24. Bxd8 {[%clk 0:02:07.8]} 24... Rxd8
{[%clk 0:01:27.7]} 25. Nxc4 {[%clk 0:01:57.2]} 25... Bxc3 {[%clk 0:01:27.3]} 26.
Rb3 {[%clk 0:01:40.8]} 26... Rd3 {[%clk 0:01:18]} 27. Nb2 {[%clk 0:00:48.5]}
27... Bf3 {[%clk 0:00:43.7]} 28. Qf2 {[%clk 0:00:22.3]} 28... Bd4 {[%clk
0:00:36]} 29. Rxd3 {[%clk 0:00:02.2]} 29... Qxg2# {[%clk 0:00:35.1]} 0-1

[Event "*** Titled Tuesday Blitz"]
[Site "Chess.com"]
[Date "2020.05.19"]
[Round "4"]
[White "StephenDedalus83"]
[Black "wonderfultime"]
[Result "1-0"]
[WhiteElo "2756"]
[BlackElo "2996"]
[TimeControl "180+1"]
[EndTime "12:40:07 PDT"]
[Termination "StephenDedalus83 won by resignation"]

1. e4 {[%clk 0:03:00.9]} 1... c5 {[%clk 0:02:58.3]} 2. Nf3 {[%clk 0:03:00.1]}
2... Nf6 {[%clk 0:02:58.3]} 3. Nc3 {[%clk 0:02:56.7]} 3... d5 {[%clk 0:02:57.5]}
4. exd5 {[%clk 0:02:55.4]} 4... Nxd5 {[%clk 0:02:58.4]} 5. Bb5+ {[%clk 0:02:51]}
5... Bd7 {[%clk 0:02:58.2]} 6. Bxd7+ {[%clk 0:02:49.9]} 6... Qxd7 {[%clk
0:02:58.4]} 7. Nxd5 {[%clk 0:02:48.9]} 7... Qxd5 {[%clk 0:02:58.6]} 8. d4 {[%clk
0:02:48]} 8... Nc6 {[%clk 0:02:58]} 9. dxc5 {[%clk 0:02:47.5]} 9... Qxc5 {[%clk
0:02:50.3]} 10. O-O {[%clk 0:02:47.3]} 10... g6 {[%clk 0:02:42.3]} 11. c3 {[%clk
0:02:44.2]} 11... Bg7 {[%clk 0:02:41.9]} 12. Qb3 {[%clk 0:02:43.9]} 12... Qb6
{[%clk 0:02:18.3]} 13. Qxb6 {[%clk 0:02:43.2]} 13... axb6 {[%clk 0:02:19.2]} 14.
Be3 {[%clk 0:02:43.3]} 14... b5 {[%clk 0:02:19.5]} 15. a3 {[%clk 0:02:34.2]}
15... O-O {[%clk 0:02:19.2]} 16. Rad1 {[%clk 0:02:33.3]} 16... Rfd8 {[%clk
0:02:19]} 17. Bb6 {[%clk 0:02:31.2]} 17... Rxd1 {[%clk 0:01:44.2]} 18. Rxd1
{[%clk 0:02:32.1]} 18... h6 {[%clk 0:01:38.6]} 19. h3 {[%clk 0:02:27.9]} 19...
Kf8 {[%clk 0:01:21.3]} 20. Rd7 {[%clk 0:02:26]} 20... Rb8 {[%clk 0:01:21.1]} 21.
Rd5 {[%clk 0:02:25.5]} 21... Ke8 {[%clk 0:01:10.3]} 22. Rxb5 {[%clk 0:02:24.3]}
22... Kd7 {[%clk 0:01:08.2]} 23. Rd5+ {[%clk 0:02:23.9]} 23... Ke6 {[%clk
0:01:08.1]} 24. Rd2 {[%clk 0:02:23.8]} 24... f5 {[%clk 0:01:08.1]} 25. Kf1
{[%clk 0:02:15.5]} 25... g5 {[%clk 0:01:03.3]} 26. Ke2 {[%clk 0:02:13.3]} 26...
Bf6 {[%clk 0:00:56.3]} 27. Ne1 {[%clk 0:02:05.1]} 27... Ne5 {[%clk 0:00:54.7]}
28. b3 {[%clk 0:01:55.3]} 28... Ng6 {[%clk 0:00:52.4]} 29. Bd4 {[%clk 0:01:49]}
29... Nf4+ {[%clk 0:00:43.5]} 30. Kd1 {[%clk 0:01:47.1]} 30... Bxd4 {[%clk
0:00:42.8]} 31. Rxd4 {[%clk 0:01:45.8]} 31... Kf6 {[%clk 0:00:34.9]} 32. h4
{[%clk 0:01:45]} 32... Rc8 {[%clk 0:00:31.4]} 33. Kd2 {[%clk 0:01:41]} 33... Ne6
{[%clk 0:00:30.2]} 34. Rb4 {[%clk 0:01:39.6]} 34... Rd8+ {[%clk 0:00:28.2]} 35.
Kc2 {[%clk 0:01:39.5]} 35... Rd7 {[%clk 0:00:27.9]} 36. hxg5+ {[%clk 0:01:38.2]}
36... hxg5 {[%clk 0:00:28.2]} 37. Rb6 {[%clk 0:01:35.7]} 37... f4 {[%clk
0:00:24.5]} 38. Nd3 {[%clk 0:01:34.2]} 38... Kf5 {[%clk 0:00:25]} 39. Rxe6
{[%clk 0:01:32.7]} 39... f3 {[%clk 0:00:06.9]} 40. Re3 {[%clk 0:01:26.1]} 40...
fxg2 {[%clk 0:00:03.3]} 41. Rg3 {[%clk 0:01:25.7]} 41... Rd8 {[%clk 0:00:03.5]}
42. Rxg2 {[%clk 0:01:25.4]} 42... Rh8 {[%clk 0:00:04.4]} 43. Rg3 {[%clk
0:01:25.2]} 43... Rh2 {[%clk 0:00:04.5]} 44. Re3 {[%clk 0:01:25]} 44... e6
{[%clk 0:00:04.8]} 45. Re2 {[%clk 0:01:24.7]} 45... g4 {[%clk 0:00:04.9]} 46.
Kd2 {[%clk 0:01:23.3]} 46... Rh1 {[%clk 0:00:04.3]} 47. Nc5 {[%clk 0:01:22.9]}
47... Rb1 {[%clk 0:00:02.4]} 48. b4 {[%clk 0:01:21.8]} 48... b6 {[%clk
0:00:01.8]} 49. Nxe6 {[%clk 0:01:21.2]} 49... Rb2+ {[%clk 0:00:02.2]} 50. Kd3
{[%clk 0:01:21.3]} 1-0

[Event "*** Titled Tuesday Blitz"]
[Site "Chess.com"]
[Date "2020.05.19"]
[Round "4"]
[White "x-3738459472"]
[Black "mrkvoz"]
[Result "1/2-1/2"]
[WhiteElo "2524"]
[BlackElo "2808"]
[TimeControl "180+1"]
[EndTime "12:40:08 PDT"]
[Termination "Game drawn by repetition"]

1. e4 {[%clk 0:03:00.9]} 1... d6 {[%clk 0:02:59.8]} 2. d4 {[%clk 0:03:00.2]}
2... Nf6 {[%clk 0:03:00.7]} 3. Nc3 {[%clk 0:02:59.3]} 3... e5 {[%clk 0:03:00.4]}
4. dxe5 {[%clk 0:02:59.5]} 4... dxe5 {[%clk 0:02:59.9]} 5. Qxd8+ {[%clk
0:03:00]} 5... Kxd8 {[%clk 0:03:00.8]} 6. f4 {[%clk 0:03:00.4]} 6... Nbd7 {[%clk
0:03:00]} 7. Nf3 {[%clk 0:02:59.6]} 7... Bd6 {[%clk 0:03:00]} 8. Bc4 {[%clk
0:02:58]} 8... Ke7 {[%clk 0:02:58.1]} 9. O-O {[%clk 0:02:49.5]} 9... c6 {[%clk
0:02:55.3]} 10. a4 {[%clk 0:02:45]} 10... a5 {[%clk 0:02:54.2]} 11. Rd1 {[%clk
0:02:40.6]} 11... Bc7 {[%clk 0:02:51.1]} 12. g3 {[%clk 0:01:57]} 12... Nb6
{[%clk 0:02:44.5]} 13. Bd3 {[%clk 0:01:53.5]} 13... Bg4 {[%clk 0:02:44.2]} 14.
Kf2 {[%clk 0:01:51.4]} 14... Nfd7 {[%clk 0:02:39.4]} 15. Be3 {[%clk 0:01:50.1]}
15... f6 {[%clk 0:02:39.4]} 16. Rd2 {[%clk 0:01:46.1]} 16... Rad8 {[%clk
0:02:34]} 17. Rad1 {[%clk 0:01:45.5]} 17... Nc8 {[%clk 0:02:33.8]} 18. Be2
{[%clk 0:01:40]} 18... Bxf3 {[%clk 0:02:30]} 19. Bxf3 {[%clk 0:01:39.7]} 19...
Bb6 {[%clk 0:02:29.8]} 20. Bg4 {[%clk 0:01:37.9]} 20... Bxe3+ {[%clk 0:02:27.9]}
21. Kxe3 {[%clk 0:01:37.8]} 21... Ncb6 {[%clk 0:02:28.3]} 22. Bxd7 {[%clk
0:01:35.6]} 22... Rxd7 {[%clk 0:02:28.1]} 23. Rxd7+ {[%clk 0:01:35.1]} 23...
Nxd7 {[%clk 0:02:29]} 24. b3 {[%clk 0:01:23.9]} 24... g6 {[%clk 0:02:26.8]} 25.
Ne2 {[%clk 0:01:21.2]} 25... h5 {[%clk 0:02:25.6]} 26. Nc1 {[%clk 0:01:17.2]}
26... h4 {[%clk 0:02:25.6]} 27. Nd3 {[%clk 0:01:15.9]} 27... hxg3 {[%clk
0:02:24.6]} 28. hxg3 {[%clk 0:01:16.8]} 28... Rh3 {[%clk 0:02:23]} 29. Kf3
{[%clk 0:01:14.8]} 29... Rh2 {[%clk 0:02:22.9]} 30. Nf2 {[%clk 0:01:13.7]} 30...
Nc5 {[%clk 0:02:02.2]} 31. fxe5 {[%clk 0:01:02.4]} 31... fxe5 {[%clk 0:02:01.3]}
32. Rh1 {[%clk 0:00:59.8]} 32... Rxh1 {[%clk 0:02:01]} 33. Nxh1 {[%clk
0:01:00.4]} 33... b5 {[%clk 0:02:01.7]} 34. axb5 {[%clk 0:00:57.9]} 34... cxb5
{[%clk 0:02:02.6]} 35. Nf2 {[%clk 0:00:58]} 35... a4 {[%clk 0:02:03.1]} 36. bxa4
{[%clk 0:00:58.4]} 36... bxa4 {[%clk 0:02:03.7]} 37. Nd1 {[%clk 0:00:58.8]}
37... a3 {[%clk 0:02:04]} 38. Nc3 {[%clk 0:00:58.9]} 38... Na4 {[%clk
0:02:04.2]} 39. Na2 {[%clk 0:00:57.2]} 39... Ke6 {[%clk 0:02:04.6]} 40. Ke3
{[%clk 0:00:57.1]} 40... Kf6 {[%clk 0:02:04.9]} 41. Kd3 {[%clk 0:00:56.6]} 41...
Kg5 {[%clk 0:02:05.1]} 42. Kc4 {[%clk 0:00:57.1]} 42... Kg4 {[%clk 0:02:05]} 43.
Kb5 {[%clk 0:00:57.2]} 43... Nb2 {[%clk 0:02:04.4]} 44. Kb4 {[%clk 0:00:57.4]}
44... Kxg3 {[%clk 0:02:03.7]} 45. Kxa3 {[%clk 0:00:53.4]} 45... Nc4+ {[%clk
0:02:03.9]} 46. Kb4 {[%clk 0:00:53.8]} 46... Nd2 {[%clk 0:02:04.6]} 47. c4
{[%clk 0:00:51.1]} 47... Nxe4 {[%clk 0:02:01.9]} 48. c5 {[%clk 0:00:51.9]} 48...
Kf3 {[%clk 0:01:55.8]} 49. c6 {[%clk 0:00:48.4]} 49... g5 {[%clk 0:01:55.5]} 50.
c7 {[%clk 0:00:48.4]} 50... Nd6 {[%clk 0:01:55.7]} 51. Kc5 {[%clk 0:00:48.7]}
51... Nc8 {[%clk 0:01:54.8]} 52. Kc6 {[%clk 0:00:47.5]} 52... g4 {[%clk
0:01:55.3]} 53. Kb7 {[%clk 0:00:47.4]} 53... Ne7 {[%clk 0:01:55.5]} 54. Nb4
{[%clk 0:00:46.1]} 54... g3 {[%clk 0:01:55.8]} 55. Nd5 {[%clk 0:00:46.5]} 55...
Nxd5 {[%clk 0:01:20.6]} 56. c8=Q {[%clk 0:00:45.6]} 56... g2 {[%clk 0:01:20.9]}
57. Qh3+ {[%clk 0:00:37.7]} 57... Kf2 {[%clk 0:01:21.1]} 58. Qh4+ {[%clk
0:00:38.1]} 58... Kf3 {[%clk 0:01:14.7]} 59. Qh3+ {[%clk 0:00:38]} 59... Kf2
{[%clk 0:01:14.5]} 60. Qh4+ {[%clk 0:00:35.1]} 60... Kf3 {[%clk 0:01:14]} 61.
Qh3+ {[%clk 0:00:29.9]} 1/2-1/2

[Event "*** Titled Tuesday Blitz"]
[Site "Chess.com"]
[Date "2020.05.19"]
[Round "4"]
[White "BocharovD"]
[Black "Zubrrr"]
[Result "1-0"]
[WhiteElo "2845"]
[BlackElo "2668"]
[TimeControl "180+1"]
[EndTime "12:40:09 PDT"]
[Termination "BocharovD won by resignation"]

1. c4 {[%clk 0:03:00.9]} 1... f5 {[%clk 0:02:51.1]} 2. Nf3 {[%clk 0:02:56.9]}
2... Nf6 {[%clk 0:02:51.2]} 3. d4 {[%clk 0:02:56.9]} 3... g6 {[%clk 0:02:51.5]}
4. e3 {[%clk 0:02:56.4]} 4... Bg7 {[%clk 0:02:51.9]} 5. Be2 {[%clk 0:02:55.6]}
5... O-O {[%clk 0:02:52.4]} 6. b4 {[%clk 0:02:55.5]} 6... d6 {[%clk 0:02:49]} 7.
Bb2 {[%clk 0:02:55]} 7... Nbd7 {[%clk 0:02:24]} 8. Qb3 {[%clk 0:02:49.8]} 8...
e6 {[%clk 0:02:19.4]} 9. O-O {[%clk 0:02:45.6]} 9... Qe7 {[%clk 0:02:18.6]} 10.
Nc3 {[%clk 0:02:44.8]} 10... Re8 {[%clk 0:01:53.5]} 11. Rfd1 {[%clk 0:02:39.9]}
11... h6 {[%clk 0:01:49.9]} 12. Rac1 {[%clk 0:02:38.2]} 12... g5 {[%clk
0:01:48.9]} 13. a4 {[%clk 0:02:16.5]} 13... g4 {[%clk 0:01:25.7]} 14. Nh4 {[%clk
0:02:12.6]} 14... Nf8 {[%clk 0:01:18.7]} 15. g3 {[%clk 0:02:08.8]} 15... Bd7
{[%clk 0:00:50.8]} 16. Qc2 {[%clk 0:02:05.4]} 16... N6h7 {[%clk 0:00:41.2]} 17.
d5 {[%clk 0:01:51.6]} 17... Qf7 {[%clk 0:00:40.6]} 18. dxe6 {[%clk 0:01:41.9]}
18... Bxe6 {[%clk 0:00:40]} 19. Nd5 {[%clk 0:01:42.5]} 19... Ng5 {[%clk
0:00:18]} 20. Nf4 {[%clk 0:01:40.2]} 20... Bxb2 {[%clk 0:00:10.3]} 21. Qxb2
{[%clk 0:01:41.1]} 21... Re7 {[%clk 0:00:07.1]} 22. Nd5 {[%clk 0:01:30.4]} 22...
Bxd5 {[%clk 0:00:06.1]} 23. Rxd5 {[%clk 0:01:28.3]} 23... Nh3+ {[%clk
0:00:02.6]} 24. Kf1 {[%clk 0:01:27.1]} 24... f4 {[%clk 0:00:01.7]} 25. exf4
{[%clk 0:01:13.6]} 25... Qe6 {[%clk 0:00:01.8]} 26. Nf5 {[%clk 0:01:08.3]} 26...
Qe4 {[%clk 0:00:01.9]} 27. Nxe7+ {[%clk 0:01:08.1]} 27... Kf7 {[%clk 0:00:02.2]}
28. f3 {[%clk 0:01:05.1]} 28... gxf3 {[%clk 0:00:02.5]} 29. Bd3 {[%clk
0:00:41.8]} 29... Qe3 {[%clk 0:00:02.8]} 30. Qg7+ {[%clk 0:00:40.1]} 30... Kxg7
{[%clk 0:00:02.9]} 31. Nf5+ {[%clk 0:00:39.4]} 1-0